bitfinex-derivatives/quotes_SOLF0:USTF0_20260311
["timestamp","ask_amount","ask_price","bid_price","bid_amount"]
[1773198162581,4.98672494,85.9,85.86,2.60141029]
[1773198162776,4.99285162,85.899,85.85,2.60141029]
[1773198163184,4.97499177,85.889,85.84,2.60141029]
[1773198164482,4.97499177,85.883,85.84,2.60141029]
[1773198165378,4.97504662,85.879,85.84,2.60141029]
[1773198165574,4.97504662,85.879,85.825,10.485]
[1773198165575,4.97504662,85.879,85.83,2.60141029]
[1773198166780,4.97504662,85.877,85.83,2.60141029]
[1773198166980,4.97504662,85.877,85.85,2.60141029]
[1773198168477,2.60141029,85.9,85.85,2.60141029]
[1773198168685,4.976841,85.897,85.86,2.60141029]
[1773198169986,4.97195798,85.893,85.85,2.60141029]
[1773198171891,4.97195798,85.893,85.86,2.60141029]
[1773198175891,4.97715674,85.901,85.86,2.60141029]
[1773198177384,4.97685169,85.897,85.86,2.60141029]
[1773198179395,4.97983865,85.894,85.85,2.60141029]
[1773198180395,4.97983865,85.89,85.85,2.60141029]
[1773198181286,4.97983865,85.89,85.801,34.96]
[1773198181287,4.97983865,85.89,85.86,2.60141029]
[1773198182590,4.98025844,85.909,85.86,2.60141029]
[1773198182896,4.98025844,85.909,85.87,2.60141029]
[1773198183092,4.98025844,85.909,85.86,2.60141029]
[1773198183591,4.97744968,85.903,85.86,2.60141029]
[1773198185398,4.97728386,85.896,85.85,2.60141029]
[1773198185597,2.60141029,85.89,85.85,2.60141029]
[1773198185898,4.97728386,85.889,85.84,2.60141029]
[1773198187490,4.98182386,85.883,85.84,2.60141029]
[1773198188000,4.98182386,85.879,85.83,2.60141029]
[1773198189502,4.98190993,85.876,85.83,2.60141029]
[1773198190104,4.98190993,85.87,85.83,2.60141029]
[1773198190494,15.46190993,85.868,85.83,2.60141029]
[1773198190905,4.98190993,85.868,85.83,2.60141029]
[1773198191704,4.97070003,85.88,85.84,2.60141029]
[1773198192107,10.48,85.872,85.84,2.60141029]
[1773198199603,5.01461615,85.869,85.83,2.60141029]
[1773198200610,5.01460714,85.86,85.83,2.60141029]
[1773198201113,5.01460714,85.86,85.82,2.60141029]
[1773198201614,5.01634408,85.857,85.81,2.60141029]
[1773198202007,5.01634408,85.844,85.81,2.60141029]
[1773198203914,5.01634408,85.844,85.798,10.489]
[1773198204115,5.01634408,85.844,85.81,2.60141029]
[1773198204712,5.01691027,85.839,85.772,21.48746077]
[1773198205012,5.01691027,85.819,85.78,2.60141029]
[1773198208619,5.00385238,85.832,85.8,2.60141029]
[1773198209015,5.00284355,85.849,85.81,2.60141029]
[1773198209320,5.00284355,85.869,85.82,2.60141029]
[1773198209516,5.00284355,85.867,85.82,2.60141029]
[1773198209818,5.00284355,85.865,85.82,2.60141029]
[1773198210017,5.00284355,85.863,85.82,2.60141029]
[1773198210217,5.00284355,85.861,85.82,2.60141029]
[1773198210518,5.00284355,85.859,85.82,2.60141029]
[1773198211315,5.00284355,85.859,85.83,2.60141029]
[1773198213221,5.04494712,85.87,85.83,2.60141029]
[1773198214315,10.481,85.86,85.82,2.60141029]
[1773198214624,5.04494712,85.859,85.82,2.60141029]
[1773198215021,5.04494712,85.855,85.81,2.60141029]
[1773198215619,5.04494712,85.855,85.83,2.60141029]
[1773198215922,5.0569647,85.865,85.83,2.60141029]
[1773198216417,5.0569647,85.865,85.764,20.986]
[1773198216418,5.0569647,85.853,85.81,2.60141029]
[1773198217524,2.60141029,85.86,85.81,2.60141029]
[1773198217525,5.05547893,85.846,85.81,2.60141029]
[1773198217920,15.53847893,85.844,85.81,2.60141029]
[1773198218219,5.05547893,85.843,85.81,2.60141029]
[1773198219722,5.05547893,85.843,85.81,2.60465889]
[1773198222221,10.483,85.841,85.81,2.60465889]
[1773198222826,5.05547893,85.843,85.81,2.60465889]
[1773198223020,5.05551341,85.859,85.82,2.60465889]
[1773198224226,10.483,85.849,85.82,2.60465889]
[1773198224528,5.05510492,85.848,85.81,2.60465889]
[1773198225532,5.03522301,85.842,85.81,2.60465889]
[1773198226427,5.03522301,85.839,85.81,2.60465889]
[1773198227321,10.484,85.837,85.81,2.60465889]
[1773198227521,5.03522301,85.839,85.81,2.60465889]
[1773198230329,15.54307724,85.838,85.81,2.60465889]
[1773198231533,5.05788694,85.837,85.81,2.60465889]
[1773198232333,5.05788694,85.837,85.8,2.60465889]
[1773198234331,10.484,85.834,85.81,2.60465889]
[1773198234734,5.05788694,85.837,85.81,2.60465889]
[1773198234935,5.05788694,85.837,85.8,2.60465889]
[1773198237430,5.06058783,85.834,85.8,2.60465889]
[1773198239630,5.06058783,85.834,85.81,2.60465889]
[1773198240028,5.06058783,85.834,85.8,2.60465889]
[1773198240534,15.54712617,85.833,85.8,2.60465889]
[1773198240733,5.06212617,85.832,85.8,2.60465889]
[1773198240934,5.06212617,85.832,85.742,20.992]
[1773198240935,5.06212617,85.818,85.77,2.60465889]
[1773198242437,5.06246434,85.809,85.77,2.60465889]
[1773198243127,5.07272511,85.799,85.76,2.60465889]
[1773198243632,5.07272511,85.799,85.75,2.60465889]
[1773198243832,5.07272511,85.794,85.75,2.60465889]
[1773198244031,5.07272511,85.794,85.76,2.60465889]
[1773198244228,5.07272511,85.794,85.745,21.48746077]
[1773198244535,15.56272511,85.791,85.76,2.60465889]
[1773198245534,5.06205508,85.79,85.75,2.60465889]
[1773198245844,5.06205508,85.769,85.72,2.60465889]
[1773198246437,5.06205508,85.749,85.703,21.48746077]
[1773198246635,5.06205508,85.749,85.7,2.60465889]
[1773198246937,5.06205508,85.749,85.71,2.60465889]
[1773198247539,5.25079881,85.742,85.683,21.48746077]
[1773198247735,5.25079881,85.739,85.7,2.60465889]
[1773198247934,5.25079881,85.759,85.71,2.60465889]
[1773198248338,5.25079881,85.759,85.674,23.51731361]
[1773198248643,5.25079881,85.759,85.71,2.60465889]
[1773198249343,8.54438295,85.802,85.674,2.02985284]
[1773198249344,5.19158353,85.749,85.7,2.60465889]
[1773198249737,5.19158353,85.779,85.73,2.60465889]
[1773198250140,5.19158353,85.779,85.75,2.60465889]
[1773198250543,5.19158353,85.794,85.75,2.60465889]
[1773198251841,5.21861527,85.807,85.76,2.60465889]
[1773198253741,5.23062451,85.805,85.76,2.60465889]
[1773198254541,5.23062451,85.802,85.75,2.60465889]
[1773198255343,5.23062451,85.802,85.76,2.60465889]
[1773198255549,5.23062451,85.802,85.77,2.60465889]
[1773198255949,5.23062451,85.802,85.76,2.60465889]
[1773198257349,5.23062451,85.802,85.77,2.60465889]
[1773198257549,5.23062451,85.802,85.715,34.96]
[1773198257741,5.23062451,85.802,85.76,2.60465889]
[1773198258140,5.23062451,85.802,85.709,34.96]
[1773198258344,5.23062451,85.802,85.76,2.60465889]
[1773198258547,5.23362276,85.8,85.76,2.60465889]
[1773198259250,5.23227432,85.798,85.76,2.60465889]
[1773198260447,20.963,85.858,85.75,2.60465889]
[1773198260448,5.2322972,85.795,85.75,2.60465889]
[1773198261146,5.2322972,85.795,85.696,21.48746077]
[1773198261345,5.22559376,85.789,85.75,2.60465889]
[1773198262548,5.22559376,85.789,85.76,2.60465889]
[1773198263147,5.21688942,85.804,85.77,2.60465889]
[1773198264150,5.21688942,85.801,85.76,2.60465889]
[1773198264845,10.489,85.799,85.76,2.60465889]
[1773198265041,5.21688942,85.801,85.76,2.60465889]
[1773198265447,5.21688942,85.801,85.77,2.60465889]
[1773198270853,5.22115786,85.799,85.77,2.60465889]
[1773198271754,5.22134889,85.797,85.77,2.60465889]
[1773198272055,5.22134889,85.797,85.76,2.60465889]
[1773198272756,5.22134889,85.797,85.76,0.00065889]
[1773198272954,5.22134889,85.797,85.75,2.60465889]
[1773198273155,5.22134889,85.797,85.76,2.60465889]
[1773198274357,10.491,85.78,85.75,2.60465889]
[1773198274753,5.22134889,85.797,85.76,2.60465889]
[1773198274951,10.489,85.796,85.75,2.60465889]
[1773198276451,15.73214599,85.796,85.75,2.60465889]
[1773198277558,10.49,85.79,85.75,2.60465889]
[1773198277761,5.23853155,85.795,85.75,2.60465889]
[1773198278155,10.489,85.793,85.75,2.60465889]
[1773198279257,15.72860809,85.793,85.75,2.60465889]
[1773198279657,15.72860809,85.793,85.75,2.60806092]
[1773198282157,5.23960809,85.793,85.75,2.60806092]
[1773198282357,5.23960809,85.793,85.76,2.60806092]
[1773198282963,15.72860809,85.793,85.75,2.60806092]
[1773198284964,5.24099878,85.792,85.75,2.60806092]
[1773198285166,10.49,85.79,85.75,2.60806092]
[1773198287057,10.491,85.781,85.74,2.60806092]
[1773198287257,10.491,85.781,85.75,2.60806092]
[1773198287456,5.25562278,85.781,85.73,2.60806092]
[1773198287664,2.60806092,85.79,85.731,10.497]
[1773198287665,5.25562278,85.773,85.731,10.497]
[1773198287860,5.25562278,85.773,85.74,2.60806092]
[1773198290763,10.491,85.782,85.74,2.60806092]
[1773198291161,15.71158942,85.782,85.74,2.60806092]
[1773198291956,5.22058942,85.781,85.74,2.60806092]
[1773198292463,10.491,85.78,85.74,2.60806092]
[1773198293166,15.71158942,85.78,85.74,2.60806092]
[1773198294365,6.58204474,85.779,85.74,2.60806092]
[1773198294565,15.71158942,85.78,85.74,2.60806092]
[1773198294764,6.58292431,85.779,85.74,2.60806092]
[1773198295059,15.71158942,85.78,85.74,2.60806092]
[1773198295255,6.58432138,85.779,85.74,2.60806092]
[1773198295459,6.58432138,85.778,85.74,2.60806092]
[1773198295665,15.71158942,85.78,85.74,2.60806092]
[1773198295858,5.19445952,85.802,85.76,2.60806092]
[1773198296062,5.19445952,85.8,85.76,2.60806092]
[1773198296362,5.19445952,85.798,85.76,2.60806092]
[1773198296569,5.19445952,85.796,85.75,2.60806092]
[1773198296765,6.58719686,85.795,85.75,2.60806092]
[1773198296965,6.58719686,85.794,85.75,2.60806092]
[1773198297165,6.58719686,85.793,85.75,2.60806092]
[1773198297365,6.58719686,85.792,85.754,10.494]
[1773198297566,6.58719686,85.791,85.754,10.494]
[1773198297769,5.19445952,85.796,85.754,10.494]
[1773198298063,6.58810465,85.795,85.754,10.494]
[1773198298367,6.58810465,85.794,85.754,10.494]
[1773198298570,6.58810465,85.793,85.75,2.60806092]
[1773198298762,6.58810465,85.792,85.75,2.60806092]
[1773198298959,5.19488177,85.79,85.75,2.60806092]
[1773198301071,6.58736149,85.789,85.752,10.494]
[1773198301268,5.19488177,85.79,85.752,10.494]
[1773198301767,5.19488177,85.79,85.75,2.60806092]
[1773198301972,6.58753845,85.789,85.75,2.60806092]
[1773198302168,5.19461229,85.787,85.74,2.60806092]
[1773198302372,5.19461229,85.785,85.74,13.10406092]
[1773198302566,6.58753845,85.784,85.75,2.60806092]
[1773198302766,6.58753845,85.783,85.75,2.60806092]
[1773198303064,6.58753845,85.782,85.75,2.60806092]
[1773198303267,5.19461229,85.785,85.75,2.60806092]
[1773198303471,6.58734344,85.784,85.75,2.60806092]
[1773198303769,6.58734344,85.783,85.75,2.60806092]
[1773198303972,6.58734344,85.782,85.75,2.60806092]
[1773198304172,5.19461229,85.785,85.75,2.60806092]
[1773198304362,6.58752377,85.784,85.75,2.60806092]
[1773198304564,6.58752377,85.783,85.75,2.60806092]
[1773198304774,6.58752377,85.782,85.75,2.60806092]
[1773198305073,5.19461229,85.785,85.75,2.60806092]
[1773198305277,6.58772437,85.784,85.75,2.60806092]
[1773198305476,6.58772437,85.783,85.75,2.60806092]
[1773198305675,6.58772437,85.782,85.75,2.60806092]
[1773198305875,5.19461229,85.785,85.75,2.60806092]
[1773198306071,6.58772437,85.784,85.75,2.60806092]
[1773198306375,6.58772437,85.783,85.75,2.60806092]
[1773198306574,6.58772437,85.782,85.75,2.60806092]
[1773198306876,5.19461229,85.785,85.75,2.60806092]
[1773198307076,6.58785419,85.784,85.75,2.60806092]
[1773198307277,6.58785419,85.783,85.75,2.60806092]
[1773198307576,6.58785419,85.782,85.75,2.60806092]
[1773198307773,5.19461229,85.785,85.75,2.60806092]
[1773198308075,6.5878337,85.784,85.75,2.60806092]
[1773198308274,6.5878337,85.783,85.75,2.60806092]
[1773198308475,6.5878337,85.782,85.75,2.60806092]
[1773198308676,5.19461229,85.785,85.75,2.60806092]
[1773198308876,6.58779891,85.784,85.75,2.60806092]
[1773198309070,6.58779891,85.783,85.75,2.60806092]
[1773198309272,6.58779891,85.782,85.75,2.60806092]
[1773198309469,5.19461229,85.785,85.75,2.60806092]
[1773198310575,5.2119813,85.807,85.756,10.494]
[1773198310877,5.2119813,85.805,85.756,10.494]
[1773198311077,5.2119813,85.803,85.756,10.494]
[1773198311270,5.21074051,85.799,85.756,10.494]
[1773198311474,5.21074051,85.797,85.756,10.494]
[1773198311674,5.21074051,85.795,85.756,10.494]
[1773198311874,11.80239603,85.794,85.756,10.494]
[1773198312076,6.59165552,85.793,85.756,10.494]
[1773198312280,6.59165552,85.792,85.756,10.494]
[1773198312476,6.59165552,85.791,85.756,10.494]
[1773198312678,6.59165552,85.79,85.756,10.494]
[1773198312873,6.59165552,85.789,85.756,10.494]
[1773198313070,5.21074051,85.792,85.756,10.494]
[1773198313271,6.59213128,85.791,85.756,10.494]
[1773198313474,5.19459795,85.789,85.75,2.60806092]
[1773198313675,5.19459795,85.787,85.74,2.60806092]
[1773198313880,5.19459795,85.785,85.74,2.60806092]
[1773198314076,5.19459795,85.779,85.73,2.60806092]
[1773198314281,5.19459795,85.777,85.73,2.60806092]
[1773198314475,2.60806092,85.78,85.73,2.60806092]
[1773198314476,5.19459795,85.775,85.73,2.60806092]
[1773198314678,5.19459795,85.773,85.73,2.60806092]
[1773198314879,6.59213128,85.772,85.73,2.60806092]
[1773198315079,5.19459795,85.773,85.73,2.60806092]
[1773198315281,6.62660005,85.772,85.73,2.60806092]
[1773198315479,5.19459795,85.773,85.74,2.60806092]
[1773198315788,5.17165204,85.771,85.73,2.60806092]
[1773198315974,5.17165204,85.769,85.72,2.60806092]
[1773198316176,5.17165204,85.767,85.72,2.60806092]
[1773198316378,5.17165204,85.765,85.722,21.48746077]
[1773198316575,5.17165204,85.763,85.722,21.48746077]
[1773198316981,5.17165204,85.763,85.73,2.60806092]
[1773198319886,5.12830935,85.779,85.74,2.60806092]
[1773198321387,5.12830935,85.779,85.741,10.496]
[1773198322779,5.12836629,85.791,85.75,2.60806092]
[1773198323485,5.12836629,85.791,85.741,10.496]
[1773198323685,5.1255318,85.789,85.741,10.496]
[1773198324988,5.1255318,85.789,85.748,10.495]
[1773198327288,5.12726642,85.787,85.748,10.495]
[1773198327490,6.62295623,85.786,85.748,10.495]
[1773198327690,6.62295623,85.785,85.748,10.495]
[1773198327993,6.62295623,85.784,85.748,10.495]
[1773198328191,5.12726642,85.787,85.748,10.495]
[1773198328390,5.12726642,85.785,85.748,10.495]
[1773198328590,6.62291172,85.784,85.748,10.495]
[1773198328784,5.12726642,85.785,85.748,10.495]
[1773198328989,6.62291371,85.784,85.748,10.495]
[1773198329187,5.12726642,85.785,85.748,10.495]
[1773198329488,6.62301711,85.784,85.748,10.495]
[1773198329792,5.12726642,85.785,85.748,10.495]
[1773198329993,6.62301711,85.784,85.748,10.495]
[1773198330294,5.12726642,85.785,85.748,10.495]
[1773198330492,6.6231238,85.784,85.748,10.495]
[1773198330793,5.12726642,85.785,85.748,10.495]
[1773198330994,6.62312519,85.784,85.748,10.495]
[1773198331189,5.12726642,85.785,85.748,10.495]
[1773198331396,6.62323629,85.784,85.748,10.495]
[1773198331596,5.12726642,85.785,85.748,10.495]
[1773198331792,6.62323629,85.784,85.748,10.495]
[1773198331991,5.12726642,85.785,85.748,10.495]
[1773198332193,6.62323629,85.784,85.748,10.495]
[1773198332396,5.12726642,85.785,85.748,10.495]
[1773198332699,6.62323146,85.784,85.748,10.495]
[1773198332899,5.12726642,85.785,85.748,10.495]
[1773198333088,6.623361,85.784,85.748,10.495]
[1773198333291,5.12726642,85.785,85.748,10.495]
[1773198333488,6.62345886,85.784,85.748,10.495]
[1773198333698,5.12726642,85.785,85.748,10.495]
[1773198333998,6.62345886,85.784,85.748,10.495]
[1773198334198,5.12726642,85.785,85.748,10.495]
[1773198334496,11.75249227,85.784,85.748,10.495]
[1773198334694,5.12896674,85.784,85.748,10.495]
[1773198339793,5.12801851,85.801,85.755,10.494]
[1773198340000,5.12801851,85.799,85.755,10.494]
[1773198340298,5.12801851,85.797,85.755,10.494]
[1773198340497,5.12801851,85.795,85.755,10.494]
[1773198340693,5.12801851,85.793,85.755,10.494]
[1773198340895,11.75174479,85.792,85.755,10.494]
[1773198341199,6.62372628,85.791,85.755,10.494]
[1773198341400,6.62372628,85.79,85.755,10.494]
[1773198341603,5.12683344,85.788,85.755,10.494]
[1773198344797,5.13344587,85.799,85.762,10.493]
[1773198344998,5.13344587,85.797,85.762,10.493]
[1773198345194,11.77411185,85.796,85.762,10.493]
[1773198345396,11.77411185,85.795,85.762,10.493]
[1773198345598,5.14030655,85.793,85.76,2.60826931]
[1773198345793,6.6338053,85.792,85.754,10.494]
[1773198346001,5.14030655,85.793,85.754,10.494]
[1773198346201,6.63319724,85.792,85.754,10.494]
[1773198346402,5.14030655,85.793,85.754,10.494]
[1773198346604,6.63319724,85.792,85.754,10.494]
[1773198346804,5.14030655,85.793,85.754,10.494]
[1773198347002,6.63319302,85.792,85.754,10.494]
[1773198347203,6.6329516,85.791,85.761,10.493]
[1773198347405,5.14030655,85.793,85.761,10.493]
[1773198348007,6.63295371,85.792,85.761,10.493]
[1773198348214,6.63295371,85.791,85.761,10.493]
[1773198348402,5.14030655,85.793,85.761,10.493]
[1773198348598,6.63263697,85.792,85.761,10.493]
[1773198348902,5.14030655,85.793,85.761,10.493]
[1773198348903,6.63263697,85.791,85.761,10.493]
[1773198349103,5.14030655,85.793,85.761,10.493]
[1773198349304,6.63233894,85.792,85.761,10.493]
[1773198349507,6.63233894,85.791,85.761,10.493]
[1773198349806,5.14030655,85.793,85.761,10.493]
[1773198350007,6.63301289,85.792,85.761,10.493]
[1773198350308,6.63301289,85.791,85.761,10.493]
[1773198350508,5.14030655,85.793,85.761,10.493]
[1773198350705,6.63273261,85.792,85.761,10.493]
[1773198350905,6.63273261,85.791,85.753,10.494]
[1773198351106,5.14030655,85.793,85.753,10.494]
[1773198351409,6.63246936,85.792,85.753,10.494]
[1773198351610,6.63246936,85.791,85.753,10.494]
[1773198351805,5.14030655,85.793,85.753,10.494]
[1773198352103,6.63180385,85.792,85.753,10.494]
[1773198352408,5.14030655,85.793,85.753,10.494]
[1773198352610,6.63088934,85.792,85.753,10.494]
[1773198352810,5.14030655,85.793,85.76,2.60826931]
[1773198353011,6.63088934,85.792,85.76,2.60826931]
[1773198353212,5.14030655,85.793,85.76,2.60826931]
[1773198353412,6.63065513,85.792,85.76,2.60826931]
[1773198353713,5.14030655,85.793,85.76,2.60826931]
[1773198353911,6.63065513,85.792,85.76,2.60826931]
[1773198354111,5.14030655,85.793,85.76,2.60826931]
[1773198354412,6.63043547,85.792,85.76,2.60826931]
[1773198354607,5.14030655,85.793,85.76,2.60826931]
[1773198354813,6.63043547,85.792,85.76,2.60826931]
[1773198355013,5.14030655,85.793,85.76,2.60826931]
[1773198355214,6.63026332,85.792,85.76,2.60826931]
[1773198355513,5.14030655,85.793,85.76,2.60826931]
[1773198355715,6.63026332,85.792,85.76,2.60826931]
[1773198355913,5.14030655,85.793,85.76,2.60826931]
[1773198356115,6.63026332,85.792,85.76,2.60826931]
[1773198356314,5.14030655,85.793,85.76,2.60826931]
[1773198356516,6.63025386,85.792,85.76,2.60826931]
[1773198356706,5.14030655,85.793,85.76,2.60826931]
[1773198356908,6.63025386,85.792,85.76,2.60826931]
[1773198357107,5.14030655,85.793,85.76,13.10126931]
[1773198366127,5.14030655,85.793,85.76,10.493]
[1773198369229,5.14030655,85.793,85.76,13.10126931]
[1773198371229,5.10738194,85.809,85.76,2.60826931]
[1773198371435,5.10738194,85.819,85.78,2.60826931]
[1773198371635,5.10738194,85.799,85.752,21.48746077]
[1773198371834,5.10738194,85.797,85.75,2.60826931]
[1773198372036,5.10738194,85.795,85.76,2.60826931]
[1773198372230,2.60826931,85.82,85.771,3.02174734]
[1773198372431,2.60826931,85.81,85.771,3.02174734]
[1773198372636,6.63854798,85.809,85.771,3.02174734]
[1773198372836,6.63854798,85.808,85.771,3.02174734]
[1773198373135,6.63854798,85.807,85.771,3.02174734]
[1773198373335,6.63854798,85.806,85.771,13.51374734]
[1773198373535,6.63854798,85.805,85.771,13.51374734]
[1773198373736,6.63854798,85.804,85.771,13.51374734]
[1773198373933,6.63854798,85.803,85.771,13.51374734]
[1773198374127,2.60826931,85.81,85.771,13.51374734]
[1773198374328,4.04043776,85.808,85.771,13.51374734]
[1773198374635,4.04043776,85.806,85.771,13.51374734]
[1773198374936,4.04043776,85.804,85.771,13.51374734]
[1773198375130,4.04043776,85.802,85.771,3.02174734]
[1773198375434,4.04043776,85.802,85.764,3.15593565]
[1773198376033,4.04043776,85.817,85.77,2.60826931]
[1773198376234,4.04043776,85.809,85.762,3.15593565]
[1773198376433,4.04043776,85.807,85.762,3.15593565]
[1773198376634,4.04043776,85.805,85.762,3.15593565]
[1773198376836,4.04043776,85.803,85.763,13.64893565]
[1773198377036,4.04043776,85.801,85.764,3.15593565]
[1773198377240,4.04043776,85.801,85.77,2.60826931]
[1773198377433,4.04043776,85.801,85.764,3.15593565]
[1773198378642,4.04043776,85.801,85.77,2.60826931]
[1773198385348,4.04043776,85.801,85.771,10.492]
[1773198386244,4.04043776,85.801,85.771,13.67837749]
[1773198386450,4.04043776,85.801,85.772,3.18637749]
[1773198387150,4.04043776,85.801,85.733,34.98]
[1773198387151,3.9271517,85.819,85.781,3.14816663]
[1773198387352,3.9271517,85.817,85.781,3.14816663]
[1773198387552,3.9271517,85.827,85.79,5.75643594]
[1773198387753,10.55855625,85.826,85.79,5.75643594]
[1773198388052,6.63140455,85.825,85.79,5.75643594]
[1773198388240,6.63140455,85.824,85.79,5.75643594]
[1773198388441,6.63140455,85.823,85.79,5.75643594]
[1773198388650,6.63140455,85.822,85.79,5.75643594]
[1773198388852,6.63140455,85.821,85.79,5.75643594]
[1773198389151,3.9271517,85.826,85.79,3.14816663]
[1773198389348,10.55603654,85.825,85.79,3.14816663]
[1773198389544,10.55603654,85.824,85.79,3.14816663]
[1773198389751,6.62888484,85.823,85.79,3.14816663]
[1773198389952,6.62888484,85.822,85.79,3.14816663]
[1773198390147,3.9271517,85.824,85.79,3.14816663]
[1773198390348,6.62746961,85.823,85.79,3.14816663]
[1773198390553,6.62746961,85.822,85.79,3.14816663]
[1773198390756,3.9271517,85.824,85.79,3.14816663]
[1773198391054,6.62615115,85.823,85.79,3.14816663]
[1773198391246,3.9271517,85.824,85.79,3.14816663]
[1773198391449,10.55224282,85.823,85.79,3.14816663]
[1773198391645,3.9271517,85.823,85.79,3.14816663]
[1773198397858,3.83344446,85.819,85.779,3.16219829]
[1773198398356,3.83344446,85.819,85.78,2.60826931]
[1773198399950,3.83344446,85.819,85.781,10.491]
[1773198400155,3.83344446,85.819,85.781,13.63135513]
[1773198404468,3.83344446,85.819,85.78,2.60631624]
[1773198404469,3.83344446,85.819,85.785,10.49]
[1773198404863,3.83344446,85.819,85.785,13.6362402]
[1773198406563,3.83344446,85.819,85.786,3.20210653]
[1773198406961,3.83344446,85.819,85.789,10.49]
[1773198408166,3.83344446,85.819,85.786,3.20210653]
[1773198411260,4.00757647,85.809,85.77,21.48746077]
[1773198411560,4.00757647,85.809,85.771,3.08108644]
[1773198411970,4.00757647,85.809,85.773,13.57308644]
[1773198412365,4.00757647,85.809,85.773,3.08108644]
[1773198413969,6.61389271,85.8,85.762,3.0754685]
[1773198414171,4.00757647,85.8,85.762,3.0754685]
[1773198415470,4.00757647,85.8,85.765,3.07234036]
[1773198420666,2.60631624,85.82,85.77,2.60631624]
[1773198420868,4.00757647,85.809,85.771,3.05230182]
[1773198422166,4.00757647,85.808,85.761,3.0558857]
[1773198422568,4.00757647,85.789,85.751,3.0558857]
[1773198422772,4.00757647,85.779,85.74,5.66220194]
[1773198423074,4.00757647,85.759,85.719,3.0558857]
[1773198424977,4.00757647,85.749,85.708,3.05991597]
[1773198426287,2.60631624,85.74,85.708,3.05991597]
[1773198427490,4.00757647,85.739,85.695,3.16863234]
[1773198428187,4.00757647,85.755,85.711,3.16863234]
[1773198428488,2.60631624,85.75,85.711,3.16863234]
[1773198428689,4.00757647,85.749,85.711,3.16863234]
[1773198430980,4.00757647,85.749,85.71,2.60631624]
[1773198430981,4.00757647,85.748,85.7,5.77760997]
[1773198431186,4.00757647,85.748,85.7,2.60631624]
[1773198432389,4.00757647,85.745,85.7,2.60631624]
[1773198433190,4.00757647,85.756,85.72,2.60631624]
[1773198433388,4.00757647,85.756,85.711,3.15484379]
[1773198433992,2.60631624,85.75,85.71,2.60631624]
[1773198434193,4.00757647,85.749,85.71,2.60631624]
[1773198434794,4.00757647,85.746,85.71,2.60631624]
[1773198435889,4.00757647,85.746,85.7,5.76375794]
[1773198436592,4.00757647,85.746,85.71,2.60631624]
[1773198442701,4.00757647,85.746,85.72,2.60631624]
[1773198443396,3.88299029,85.763,85.72,5.7884622]
[1773198443597,3.88299029,85.763,85.721,3.18214596]
[1773198445404,3.88299029,85.763,85.73,2.60631624]
[1773198445804,3.88299029,85.763,85.723,3.15437501]
[1773198445805,3.88299029,85.763,85.72,2.60631624]
[1773198451605,3.88299029,85.762,85.72,2.60631624]
[1773198452410,3.88299029,85.759,85.72,2.60631624]
[1773198455205,10.494,85.758,85.72,2.60631624]
[1773198455400,3.88299029,85.757,85.72,2.60631624]
[1773198456009,3.88299029,85.755,85.712,3.15437501]
[1773198456211,3.88299029,85.755,85.71,2.60631624]
[1773198457708,3.88299029,85.755,85.684,200.28476989]
[1773198457709,3.88299029,85.755,85.72,2.60631624]
[1773198457909,3.88299029,85.755,85.72,5.66957558]
[1773198461109,3.88299029,85.755,85.73,2.60631624]
[1773198461611,3.88299029,85.755,85.72,5.66957558]
[1773198463710,3.88299029,85.755,85.72,2.61029287]
[1773198464314,3.723367,85.748,85.72,2.61029287]
[1773198464508,3.723367,85.748,85.71,3.09664462]
[1773198464509,3.723367,85.748,85.71,2.61029287]
[1773198464910,3.723367,85.748,85.7,2.61029287]
[1773198465510,3.723367,85.745,85.7,2.61029287]
[1773198465809,3.723367,85.745,85.71,2.61029287]
[1773198467618,2.61029287,85.74,85.695,21.48746077]
[1773198467909,2.61029287,85.74,85.69,2.61029287]
[1773198467910,3.723367,85.739,85.69,2.61029287]
[1773198469309,10.497,85.728,85.69,2.61029287]
[1773198469504,4.00649869,85.727,85.686,3.10069798]
[1773198469709,4.00649869,85.727,85.69,2.61029287]
[1773198470908,4.00649869,85.739,85.701,3.1033667]
[1773198471108,4.00649869,85.739,85.71,2.61029287]
[1773198471508,4.00649869,85.751,85.72,2.61029287]
[1773198475723,4.00649869,85.762,85.73,2.61029287]
[1773198475917,6.80624309,85.761,85.73,2.61029287]
[1773198476117,6.80624309,85.76,85.73,2.61029287]
[1773198476422,6.80624309,85.759,85.73,2.61029287]
[1773198476611,6.80624309,85.758,85.73,2.61029287]
[1773198476813,4.00649869,85.762,85.73,2.61029287]
[1773198476814,6.80624309,85.757,85.73,2.61029287]
[1773198477020,6.80624309,85.756,85.73,2.61029287]
[1773198477218,6.80624309,85.755,85.73,2.61029287]